fUSD/lending_fUSD_20241225
["ID","MTS","AMOUNT","RATE_DAILY","PERIOD"]
[346586406,1735117410787,150.0,9.574e-05,2]
[346586407,1735117410847,150.0,9.439e-05,2]
[346586408,1735117410901,150.0,9.577e-05,2]
[346586409,1735117410935,150.0,9.587e-05,2]
[346586410,1735117410974,150.0,9.588e-05,2]
[346586411,1735117411058,150.0,9.598e-05,2]
[346586412,1735117418080,656.75,8.865e-05,2]
[346586414,1735117456404,1000.0,8.711e-05,2]
[346586415,1735117456539,250.0,8.711e-05,2]
[346586416,1735117470760,150.0,9.52e-05,2]
[346586417,1735117470823,150.0,9.49e-05,2]
[346586418,1735117470899,150.0,9.512e-05,2]
[346586419,1735117470968,150.0,9.484e-05,2]
[346586420,1735117471070,150.0,9.583e-05,2]
[346586421,1735117471133,150.0,9.588e-05,2]
[346586422,1735117471251,150.0,9.47e-05,2]
[346586423,1735117471413,150.0,9.484e-05,2]
[346586425,1735117552482,1500.0,8.712e-05,2]
[346586426,1735117590847,150.0,9.522e-05,2]
[346586427,1735117590934,150.0,9.564e-05,2]
[346586428,1735117590982,150.0,9.535e-05,2]
[346586429,1735117591022,150.0,9.568e-05,2]
[346586430,1735117606289,1044.0,9.605e-05,10]
[346586444,1735117654821,21423.8063,9.552e-05,2]
[346586445,1735117667980,1953.77,8.769e-05,2]
[346586446,1735117688466,158.0,0.00018,30]
[346586447,1735117688728,158.0,0.00018,30]
[346586448,1735117689003,158.0,0.00018,30]
[346586449,1735117735888,250.0,8.699e-05,2]
[346586451,1735117766219,1022.11,8.699e-05,2]
[346586456,1735117834935,-150.0,9.609e-05,2]
[346586457,1735117834944,-150.0,9.613e-05,2]
[346586458,1735117834954,-150.0,9.614e-05,2]
[346586459,1735117834963,-150.0,9.614e-05,2]
[346586460,1735117834973,-150.0,9.615e-05,2]
[346586461,1735117834983,-150.0,9.626e-05,2]
[346586462,1735117835000,-150.0,9.63e-05,2]
[346586463,1735117835014,-150.0,9.631e-05,2]
[346586464,1735117835024,-150.0,9.638e-05,2]
[346586465,1735117835034,-300.0,9.65e-05,2]
[346586466,1735117835043,-150.0,9.651e-05,2]
[346586467,1735117835053,-517.14,9.651e-05,2]
[346586468,1735117835063,-671.68,9.651e-05,2]
[346586469,1735117835075,-500.0,9.651e-05,2]
[346586470,1735117835085,-1656.87,9.651e-05,2]
[346586471,1735117835094,-1774.81,9.651e-05,2]
[346586472,1735117835104,-500.0,9.651e-05,2]
[346586473,1735117835113,-516.19511972,9.651e-05,2]
[346586474,1735117835123,-603.36,9.651e-05,2]
[346586475,1735117835132,-540.46834161,9.651e-05,2]
[346586476,1735117835142,-500.0,9.651e-05,2]
[346586477,1735117835152,-500.0,9.651e-05,2]
[346586478,1735117835161,-164.03956811,9.651e-05,2]
[346586479,1735117835173,-421.9940596,9.651e-05,2]
[346586480,1735117835183,-154.06542873,9.652e-05,2]
[346586481,1735117835192,-32190.17461223,9.652e-05,2]
[346586482,1735117835222,-298.07857712,9.652e-05,2]
[346586506,1735117838079,-644.81198334,9.652e-05,2]
[346586507,1735117838138,-1516.19512172,9.652e-05,2]
[346586508,1735117838150,-6106.32495293,9.652e-05,2]
[346586509,1735117838196,-533.5,9.652e-05,2]
[346586510,1735117838209,-65964.28969387,9.652e-05,2]
[346586511,1735117838270,-77208.18945634,9.652e-05,2]
[346586512,1735117838283,-385.87238127,9.652e-05,2]
[346586513,1735117838322,-366.9900652,9.652e-05,2]
[346586514,1735117838378,-608.64374244,9.652e-05,2]
[346586519,1735117839753,167.2,8.763e-05,2]
[346586522,1735117840700,-302.71657206,9.651e-05,2]
[346586523,1735117840712,-197.28342794,9.651e-05,2]
[346586524,1735117840721,-336.41589006,9.652e-05,2]
[346586526,1735117840733,-418.59099643,9.652e-05,2]
[346586527,1735117840744,-297.82867182,9.652e-05,2]
[346586531,1735117840804,-7295517.43385523,9.652e-05,2]
[346586532,1735117840813,-150.0,9.653e-05,2]
[346586533,1735117840822,-181.85959431,9.653e-05,2]
[346586534,1735117840831,-470.99890916,9.653e-05,2]
[346586535,1735117840840,-150.0,9.657e-05,2]
[346586536,1735117840849,-150.0,9.657e-05,2]
[346586537,1735117840858,-150.0,9.66e-05,2]
[346586538,1735117840867,-150.0,9.661e-05,2]
[346586539,1735117840876,-150.0,9.669e-05,2]
[346586540,1735117840885,-1669.62,9.67e-05,2]
[346586541,1735117840894,-150.0,9.672e-05,2]
[346586542,1735117840903,-150.0,9.675e-05,2]
[346586543,1735117840912,-150.0,9.675e-05,2]
[346586544,1735117840922,-1541.4,9.68e-05,2]
[346586545,1735117840931,-1997.9845,9.683e-05,2]
[346586546,1735117840941,-16644.94,9.684e-05,2]
[346586547,1735117840951,-500.0,9.684e-05,2]
[346586548,1735117840962,-5000.0,9.684e-05,2]
[346586549,1735117840972,-62989.6564,9.685e-05,2]
[346586550,1735117840983,-150.0,9.688e-05,2]
[346586551,1735117840997,-500.0,9.699e-05,2]
[346586552,1735117841005,-293.0,9.699e-05,2]
[346586553,1735117841016,-150.0,9.72e-05,2]
[346586554,1735117841025,-436.35,9.726e-05,2]
[346586555,1735117841034,-150.0,9.75e-05,2]
[346586556,1735117841043,-150.0,9.777e-05,2]
[346586557,1735117841052,-150.0,9.777e-05,2]
[346586558,1735117841061,-1043.06,9.782e-05,2]
[346586559,1735117841070,-904.21,9.782e-05,2]
[346586560,1735117841079,-3886.2,9.782e-05,2]
[346586561,1735117841089,-2169.564913,9.782e-05,2]
[346586562,1735117841098,-153.897083,9.782e-05,2]
[346586563,1735117841107,-927.62,9.782e-05,2]
[346586564,1735117841116,-2192.096285,9.782e-05,2]
[346586565,1735117841125,-2290.64,9.782e-05,2]
[346586566,1735117841134,-1192.78,9.782e-05,2]
[346586567,1735117841143,-2727.3,9.782e-05,2]
[346586568,1735117841153,-11195.79,9.782e-05,2]
[346586569,1735117841162,-1697.71,9.782e-05,2]
[346586570,1735117841172,-2031.97,9.782e-05,2]
[346586571,1735117841182,-18232.47,9.782e-05,2]
[346586572,1735117841191,-2425.67,9.782e-05,2]
[346586573,1735117841201,-2431.41,9.782e-05,2]
[346586574,1735117841210,-1319.35,9.782e-05,2]
[346586575,1735117841219,-1705.73,9.782e-05,2]
[346586576,1735117841228,-1455.68,9.782e-05,2]
[346586577,1735117841237,-4249.34,9.782e-05,2]
[346586578,1735117841247,-2035.34,9.782e-05,2]
[346586579,1735117841256,-1181.45,9.782e-05,2]
[346586580,1735117841265,-2184.72,9.782e-05,2]
[346586581,1735117841275,-2969.9,9.782e-05,2]
[346586582,1735117841284,-794.52,9.782e-05,2]
[346586583,1735117841292,-4610.0,9.782e-05,2]
[346586584,1735117841301,-11411.48,9.782e-05,2]
[346586585,1735117841310,-710.85,9.782e-05,2]
[346586586,1735117841319,-8152.95,9.782e-05,2]
[346586587,1735117841328,-1030.08,9.782e-05,2]
[346586588,1735117841337,-1105.32,9.782e-05,2]
[346586589,1735117841346,-500.0,9.782e-05,2]
[346586590,1735117841355,-13959.72,9.782e-05,2]
[346586591,1735117841364,-6861.44,9.782e-05,2]
[346586592,1735117841374,-3179.69,9.782e-05,2]
[346586593,1735117841383,-874.56,9.782e-05,2]
[346586594,1735117841392,-5297.19,9.782e-05,2]
[346586595,1735117841402,-1747.14,9.782e-05,2]
[346586596,1735117841411,-2696.63,9.782e-05,2]
[346586597,1735117841428,-2175.41,9.782e-05,2]
[346586598,1735117841439,-17942.02,9.782e-05,2]
[346586599,1735117841448,-1505.74,9.782e-05,2]
[346586600,1735117841458,-1366.65,9.782e-05,2]
[346586601,1735117841467,-6812.2,9.782e-05,2]
[346586602,1735117841476,-4250.85,9.782e-05,2]
[346586603,1735117841485,-2175.17,9.782e-05,2]
[346586604,1735117841494,-3909.61,9.782e-05,2]
[346586605,1735117841504,-1311.64,9.782e-05,2]
[346586606,1735117841513,-11477.78,9.782e-05,2]
[346586607,1735117841522,-630.09,9.782e-05,2]
[346586608,1735117841531,-2666.96,9.782e-05,2]
[346586609,1735117841540,-9356.9,9.782e-05,2]
[346586610,1735117841549,-1548.98,9.782e-05,2]
[346586611,1735117841558,-500.0,9.782e-05,2]
[346586612,1735117841567,-1677.12,9.782e-05,2]
[346586613,1735117841575,-2964.29,9.782e-05,2]
[346586614,1735117841584,-1544.07,9.782e-05,2]
[346586615,1735117841593,-500.0,9.782e-05,2]
[346586616,1735117841602,-1116.83,9.782e-05,2]
[346586617,1735117841611,-1109.15,9.782e-05,2]
[346586618,1735117841620,-2118.81,9.782e-05,2]
[346586619,1735117841631,-2056.43,9.782e-05,2]
[346586620,1735117841640,-961.74,9.782e-05,2]
[346586621,1735117841649,-2938.95,9.782e-05,2]
[346586622,1735117841658,-8109.9,9.782e-05,2]
[346586623,1735117841666,-8632.96,9.782e-05,2]
[346586624,1735117841677,-1619.32,9.782e-05,2]
[346586625,1735117841687,-500.0,9.783e-05,2]
[346586626,1735117841696,-500.0,9.783e-05,2]
[346586627,1735117841705,-500.0,9.783e-05,2]
[346586628,1735117841714,-608.11,9.783e-05,2]
[346586629,1735117841723,-500.0,9.783e-05,2]
[346586630,1735117841733,-501.88602362,9.783e-05,2]
[346586631,1735117841743,-958.82,9.783e-05,2]
[346586632,1735117841753,-500.0,9.783e-05,2]
[346586633,1735117841762,-500.0,9.783e-05,2]
[346586634,1735117841771,-500.0,9.783e-05,2]
[346586635,1735117841779,-623.99,9.783e-05,2]
[346586636,1735117841788,-1088.96,9.783e-05,2]
[346586637,1735117841797,-506.09821563,9.783e-05,2]
[346586638,1735117841805,-204.34602601,9.783e-05,2]
[346586639,1735117841813,-500.0,9.783e-05,2]
[346586640,1735117841822,-500.0,9.783e-05,2]
[346586641,1735117841831,-500.0,9.783e-05,2]
[346586642,1735117841841,-780.47,9.783e-05,2]
[346586643,1735117841850,-500.0,9.783e-05,2]
[346586644,1735117841859,-721.71,9.783e-05,2]
[346586645,1735117841868,-560.49,9.783e-05,2]
[346586646,1735117841877,-500.0,9.783e-05,2]
[346586647,1735117841886,-1723.1,9.783e-05,2]
[346586648,1735117841895,-500.0,9.783e-05,2]
[346586649,1735117841904,-538.33,9.783e-05,2]
[346586650,1735117841913,-647.13,9.783e-05,2]
[346586651,1735117842145,-538.45,9.783e-05,2]
[346586652,1735117842159,-1009.34,9.783e-05,2]
[346586653,1735117842169,-1129.45,9.783e-05,2]
[346586654,1735117842178,-500.0,9.783e-05,2]
[346586655,1735117842188,-500.0,9.783e-05,2]
[346586656,1735117842198,-1286.13,9.783e-05,2]
[346586657,1735117842208,-500.0,9.783e-05,2]
[346586658,1735117842217,-500.0,9.783e-05,2]
[346586659,1735117842227,-912.77,9.783e-05,2]
[346586660,1735117842236,-500.0,9.783e-05,2]
[346586661,1735117842248,-663.49,9.783e-05,2]
[346586662,1735117842258,-881.38,9.783e-05,2]
[346586663,1735117842268,-892.6,9.783e-05,2]
[346586664,1735117842278,-500.0,9.783e-05,2]
[346586665,1735117842287,-500.0,9.783e-05,2]
[346586666,1735117842297,-513.55,9.783e-05,2]
[346586667,1735117842307,-503.49,9.783e-05,2]
[346586668,1735117842317,-713.93,9.783e-05,2]
[346586669,1735117842326,-500.0,9.783e-05,2]
[346586670,1735117842335,-500.0,9.783e-05,2]
[346586671,1735117842345,-280.07509003,9.783e-05,2]
[346586672,1735117842354,-295.35703586,9.783e-05,2]
[346586673,1735117842363,-544.64,9.783e-05,2]
[346586674,1735117842373,-500.0,9.783e-05,2]
[346586675,1735117842382,-500.0,9.783e-05,2]
[346586676,1735117842391,-500.0,9.783e-05,2]
[346586677,1735117842401,-500.0,9.783e-05,2]
[346586678,1735117842411,-532.46,9.783e-05,2]
[346586679,1735117842421,-500.0,9.783e-05,2]
[346586680,1735117842430,-500.0,9.783e-05,2]
[346586681,1735117842440,-500.0,9.783e-05,2]
[346586682,1735117842450,-346.22580349,9.783e-05,2]
[346586683,1735117842460,-500.0,9.783e-05,2]
[346586684,1735117842469,-500.0,9.783e-05,2]
[346586685,1735117842478,-500.0,9.783e-05,2]
[346586686,1735117842487,-500.0,9.783e-05,2]
[346586687,1735117842498,-500.0,9.783e-05,2]
[346586688,1735117842509,-500.0,9.783e-05,2]
[346586689,1735117842518,-1255.87,9.783e-05,2]
[346586690,1735117842527,-500.0,9.783e-05,2]
[346586691,1735117842537,-1240.34,9.783e-05,2]
[346586692,1735117842547,-522.68,9.783e-05,2]
[346586693,1735117842556,-500.0,9.783e-05,2]
[346586694,1735117842566,-500.0,9.783e-05,2]
[346586695,1735117842576,-500.0,9.783e-05,2]
[346586696,1735117842585,-500.0,9.783e-05,2]
[346586697,1735117842594,-500.0,9.783e-05,2]
[346586698,1735117842603,-500.0,9.783e-05,2]
[346586699,1735117842613,-755.49,9.783e-05,2]
[346586700,1735117842622,-500.0,9.783e-05,2]
[346586701,1735117842632,-659.5,9.783e-05,2]
[346586702,1735117842641,-500.0,9.783e-05,2]
[346586703,1735117842650,-500.0,9.783e-05,2]
[346586704,1735117842660,-1302.94,9.783e-05,2]
[346586705,1735117842669,-500.0,9.783e-05,2]
[346586706,1735117842679,-510.7,9.783e-05,2]
[346586707,1735117842689,-502.98283591,9.783e-05,2]
[346586708,1735117842700,-500.0,9.783e-05,2]
[346586709,1735117842710,-500.0,9.783e-05,2]
[346586710,1735117842719,-500.0,9.783e-05,2]
[346586711,1735117842729,-500.0,9.783e-05,2]
[346586712,1735117842739,-500.0,9.783e-05,2]
[346586713,1735117842749,-500.0,9.783e-05,2]
[346586714,1735117842758,-738.21,9.783e-05,2]
[346586715,1735117842767,-500.0,9.783e-05,2]
[346586716,1735117842778,-500.0,9.783e-05,2]
[346586717,1735117842787,-500.0,9.783e-05,2]
[346586718,1735117842796,-500.0,9.783e-05,2]
[346586719,1735117842805,-500.0,9.783e-05,2]
[346586720,1735117842814,-705.71,9.783e-05,2]
[346586721,1735117842823,-500.0,9.783e-05,2]
[346586722,1735117842833,-500.0,9.783e-05,2]
[346586723,1735117842842,-500.0,9.783e-05,2]
[346586724,1735117842852,-680.79,9.783e-05,2]
[346586725,1735117842861,-1875.18,9.783e-05,2]
[346586726,1735117842870,-500.0,9.783e-05,2]
[346586727,1735117842880,-506.07,9.783e-05,2]
[346586728,1735117842889,-909.55,9.783e-05,2]
[346586729,1735117842898,-500.0,9.783e-05,2]
[346586730,1735117842907,-500.0,9.783e-05,2]
[346586731,1735117842916,-905.11,9.783e-05,2]
[346586732,1735117842928,-747.0,9.783e-05,2]
[346586733,1735117842939,-500.0,9.783e-05,2]
[346586734,1735117842949,-627.23,9.783e-05,2]
[346586735,1735117842959,-500.0,9.783e-05,2]
[346586736,1735117842969,-500.0,9.783e-05,2]
[346586737,1735117842978,-500.0,9.783e-05,2]
[346586738,1735117842987,-500.0,9.783e-05,2]
[346586739,1735117842999,-662.95,9.783e-05,2]
[346586740,1735117843008,-743.1,9.783e-05,2]
[346586741,1735117843017,-1079.92,9.783e-05,2]
[346586742,1735117843027,-500.0,9.783e-05,2]
[346586743,1735117843036,-500.0,9.783e-05,2]
[346586745,1735117843045,-1863.85,9.783e-05,2]
[346586746,1735117843054,-545.73,9.783e-05,2]
[346586747,1735117843063,-500.0,9.783e-05,2]
[346586749,1735117843072,-1001.51,9.783e-05,2]
[346586751,1735117843082,-500.0,9.783e-05,2]
[346586753,1735117843091,-681.79,9.783e-05,2]
[346586755,1735117843100,-606.91,9.783e-05,2]
[346586757,1735117843109,-785.04,9.783e-05,2]
[346586759,1735117843118,-700.16,9.783e-05,2]
[346586761,1735117843127,-500.0,9.783e-05,2]
[346586763,1735117843136,-1153.48,9.783e-05,2]
[346586765,1735117843146,-630.19,9.783e-05,2]
[346586767,1735117843155,-1880.91,9.783e-05,2]
[346586768,1735117843164,-500.0,9.783e-05,2]
[346586769,1735117843175,-500.0,9.783e-05,2]
[346586770,1735117843184,-500.0,9.783e-05,2]
[346586771,1735117843194,-1328.23,9.783e-05,2]
[346586772,1735117843203,-500.0,9.783e-05,2]
[346586773,1735117843213,-500.0,9.783e-05,2]
[346586774,1735117843223,-603.86,9.783e-05,2]
[346586775,1735117843232,-1457.36,9.783e-05,2]
[346586776,1735117843242,-500.0,9.783e-05,2]
[346586777,1735117843252,-941.17,9.783e-05,2]
[346586778,1735117843261,-504.21690968,9.783e-05,2]
[346586779,1735117843271,-500.0,9.783e-05,2]
[346586780,1735117843280,-500.0,9.783e-05,2]
[346586781,1735117843291,-1481.76,9.783e-05,2]
[346586782,1735117843300,-500.0,9.783e-05,2]
[346586783,1735117843309,-500.0,9.783e-05,2]
[346586784,1735117843319,-1928.48,9.783e-05,2]
[346586785,1735117843328,-500.0,9.783e-05,2]
[346586786,1735117843337,-500.0,9.783e-05,2]
[346586787,1735117843346,-500.0,9.783e-05,2]
[346586788,1735117843355,-500.0,9.783e-05,2]
[346586789,1735117843365,-1308.82,9.783e-05,2]
[346586790,1735117843374,-724.72,9.783e-05,2]
[346586791,1735117843384,-500.0,9.783e-05,2]
[346586792,1735117843393,-975.36,9.783e-05,2]
[346586793,1735117843403,-500.0,9.783e-05,2]
[346586794,1735117843412,-500.0,9.783e-05,2]
[346586795,1735117843423,-500.0,9.783e-05,2]
[346586796,1735117843433,-500.0,9.783e-05,2]
[346586797,1735117843442,-502.14124658,9.783e-05,2]
[346586798,1735117843451,-602.91,9.783e-05,2]
[346586799,1735117843461,-500.0,9.783e-05,2]
[346586800,1735117843470,-560.16,9.783e-05,2]
[346586801,1735117843480,-500.0,9.783e-05,2]
[346586802,1735117843489,-500.0,9.783e-05,2]
[346586803,1735117843498,-620.13,9.783e-05,2]
[346586804,1735117843508,-652.15,9.783e-05,2]
[346586805,1735117843517,-500.0,9.783e-05,2]
[346586806,1735117843526,-1670.43,9.783e-05,2]
[346586807,1735117843536,-500.0,9.783e-05,2]
[346586808,1735117843545,-1075.28,9.783e-05,2]
[346586809,1735117843554,-500.0,9.783e-05,2]
[346586810,1735117843564,-1945.39,9.783e-05,2]
[346586811,1735117843573,-846.03,9.783e-05,2]
[346586812,1735117843582,-500.0,9.783e-05,2]
[346586813,1735117843592,-500.0,9.783e-05,2]
[346586815,1735117843601,-975.39,9.783e-05,2]
[346586817,1735117843611,-1332.17,9.783e-05,2]
[346586818,1735117843622,-500.0,9.783e-05,2]
[346586819,1735117843631,-956.71,9.783e-05,2]
[346586820,1735117843640,-500.0,9.783e-05,2]
[346586821,1735117843649,-1207.97,9.783e-05,2]
[346586822,1735117843658,-500.0,9.783e-05,2]
[346586823,1735117843667,-948.03,9.783e-05,2]
[346586824,1735117843677,-1013.7,9.783e-05,2]
[346586825,1735117843686,-3315.76,9.783e-05,2]
[346586826,1735117843698,-984.52,9.783e-05,2]
[346586828,1735117843707,-478.82431211,9.783e-05,2]
[346586830,1735117843716,-500.0,9.783e-05,2]
[346586832,1735117843725,-988.66,9.783e-05,2]
[346586834,1735117843734,-3631.76,9.783e-05,2]
[346586835,1735117843743,-2698.73,9.783e-05,2]
[346586836,1735117843753,-2698.73,9.783e-05,2]
[346586837,1735117843762,-2698.73,9.783e-05,2]
[346586838,1735117843772,-500.0,9.783e-05,2]
[346586839,1735117843782,-500.0,9.783e-05,2]
[346586840,1735117843791,-823.27,9.783e-05,2]
[346586841,1735117843802,-1212.44,9.783e-05,2]
[346586842,1735117843812,-500.0,9.783e-05,2]
[346586843,1735117843821,-562.4,9.783e-05,2]
[346586844,1735117843830,-3003.65,9.783e-05,2]
[346586845,1735117843840,-6416.61,9.783e-05,2]
[346586846,1735117843850,-1098.34,9.783e-05,2]
[346586847,1735117843860,-500.0,9.783e-05,2]
[346586848,1735117843870,-693.95,9.783e-05,2]
[346586849,1735117843879,-512.38,9.783e-05,2]
[346586850,1735117843890,-3485.28,9.783e-05,2]
[346586851,1735117843899,-500.0,9.783e-05,2]
[346586852,1735117843908,-4515.79,9.783e-05,2]
[346586853,1735117843918,-1602.62,9.783e-05,2]
[346586854,1735117843928,-592.79,9.783e-05,2]
[346586855,1735117843937,-500.0,9.783e-05,2]
[346586856,1735117843946,-500.0,9.783e-05,2]
[346586857,1735117843955,-500.0,9.783e-05,2]
[346586858,1735117843964,-3667.77,9.783e-05,2]
[346586859,1735117843974,-5336.32,9.783e-05,2]
[346586860,1735117843983,-500.0,9.783e-05,2]
[346586861,1735117843995,-1421.85,9.783e-05,2]
[346586862,1735117844006,-500.0,9.783e-05,2]
[346586863,1735117844015,-744.77,9.783e-05,2]
[346586864,1735117844024,-8169.93,9.783e-05,2]
[346586865,1735117844033,-1176.95,9.783e-05,2]
[346586866,1735117844043,-685.3,9.783e-05,2]
[346586867,1735117844054,-823.87,9.783e-05,2]
[346586868,1735117844063,-15792.16,9.783e-05,2]
[346586869,1735117844072,-10376.57,9.783e-05,2]
[346586870,1735117844083,-520.63108458,9.783e-05,2]
[346586871,1735117844094,-500.0,9.783e-05,2]
[346586872,1735117844103,-500.0,9.783e-05,2]
[346586873,1735117844112,-500.0,9.783e-05,2]
[346586874,1735117844121,-808.52,9.783e-05,2]
[346586875,1735117844130,-60587.19,9.783e-05,2]
[346586876,1735117844139,-417.83470213,9.783e-05,2]
[346586877,1735117844148,-500.0,9.783e-05,2]
[346586878,1735117844157,-3839.01,9.783e-05,2]
[346586879,1735117844166,-1401.26,9.783e-05,2]
[346586880,1735117844176,-500.0,9.783e-05,2]
[346586881,1735117844185,-741.64,9.783e-05,2]
[346586882,1735117844194,-500.0,9.783e-05,2]
[346586883,1735117844203,-500.0,9.783e-05,2]
[346586884,1735117844212,-6426.8,9.783e-05,2]
[346586885,1735117844222,-1916.63,9.783e-05,2]
[346586886,1735117844231,-754.49,9.783e-05,2]
[346586887,1735117844241,-514.55024902,9.783e-05,2]
[346586888,1735117844252,-1771.53,9.783e-05,2]
[346586889,1735117844261,-5505.76,9.783e-05,2]
[346586890,1735117844273,-500.0,9.783e-05,2]
[346586891,1735117844282,-1886.16,9.783e-05,2]
[346586892,1735117844292,-5583.29,9.783e-05,2]
[346586893,1735117844302,-500.0,9.783e-05,2]
[346586894,1735117844311,-500.0,9.783e-05,2]
[346586895,1735117844322,-697.49,9.783e-05,2]
[346586896,1735117844332,-500.0,9.783e-05,2]
[346586897,1735117844342,-500.0,9.783e-05,2]
[346586898,1735117844351,-3569.84,9.783e-05,2]
[346586899,1735117844360,-500.0,9.783e-05,2]
[346586900,1735117844370,-1020.56,9.783e-05,2]
[346586901,1735117844379,-191.76778263,9.783e-05,2]
[346586902,1735117844388,-1263.03,9.783e-05,2]
[346586903,1735117844399,-500.0,9.783e-05,2]
[346586904,1735117844408,-938.09,9.783e-05,2]
[346586905,1735117844417,-2701.93,9.783e-05,2]
[346586906,1735117844427,-2122.18,9.783e-05,2]
[346586907,1735117844436,-1965.68,9.783e-05,2]
[346586908,1735117844445,-827.46,9.783e-05,2]
[346586909,1735117844454,-500.0,9.783e-05,2]
[346586910,1735117844464,-500.0,9.783e-05,2]
[346586911,1735117844473,-525.89,9.783e-05,2]
[346586912,1735117844483,-500.0,9.783e-05,2]
[346586913,1735117844493,-6086.82,9.783e-05,2]
[346586914,1735117844502,-500.0,9.783e-05,2]
[346586915,1735117844512,-500.0,9.783e-05,2]
[346586916,1735117844521,-500.0,9.783e-05,2]
[346586917,1735117844531,-2979.62,9.783e-05,2]
[346586918,1735117844542,-742.54,9.783e-05,2]
[346586919,1735117844551,-6243.87,9.783e-05,2]
[346586920,1735117844561,-7833.27,9.783e-05,2]
[346586921,1735117844570,-500.0,9.783e-05,2]
[346586922,1735117844579,-2900.32,9.783e-05,2]
[346586923,1735117844590,-51531.12,9.783e-05,2]
[346586924,1735117844599,-500.0,9.783e-05,2]
[346586925,1735117844609,-500.0,9.783e-05,2]
[346586926,1735117844618,-867.55,9.783e-05,2]
[346586927,1735117844627,-3010.82,9.783e-05,2]
[346586928,1735117844637,-1037.07,9.783e-05,2]
[346586929,1735117844646,-1673.58,9.783e-05,2]
[346586930,1735117844655,-500.44370724,9.783e-05,2]
[346586931,1735117844664,-1766.42,9.783e-05,2]
[346586932,1735117844673,-500.0,9.783e-05,2]
[346586933,1735117844684,-500.0,9.783e-05,2]
[346586934,1735117844693,-500.0,9.783e-05,2]
[346586935,1735117844702,-647.8,9.783e-05,2]
[346586936,1735117844711,-1176.23,9.783e-05,2]
[346586937,1735117844721,-500.0,9.783e-05,2]
[346586938,1735117844730,-635.94,9.783e-05,2]
[346586939,1735117844740,-500.0,9.783e-05,2]
[346586940,1735117844749,-5192.49,9.783e-05,2]
[346586941,1735117844758,-1392.83,9.783e-05,2]
[346586942,1735117844767,-500.64451174,9.783e-05,2]
[346586943,1735117844776,-500.72517869,9.783e-05,2]
[346586944,1735117844785,-500.0,9.783e-05,2]
[346586945,1735117844794,-501.54528282,9.783e-05,2]
[346586946,1735117844804,-678.44,9.783e-05,2]
[346586947,1735117844813,-500.0,9.783e-05,2]
[346586948,1735117844822,-500.0,9.783e-05,2]
[346586949,1735117844832,-4936.19,9.783e-05,2]
[346586950,1735117844842,-500.0,9.783e-05,2]
[346586951,1735117844851,-500.0,9.783e-05,2]
[346586952,1735117844860,-500.0,9.783e-05,2]
[346586953,1735117844870,-500.0,9.783e-05,2]
[346586954,1735117844881,-500.0,9.783e-05,2]
[346586955,1735117844892,-500.0,9.783e-05,2]
[346586956,1735117844902,-500.0,9.783e-05,2]
[346586957,1735117844912,-500.0,9.783e-05,2]
[346586958,1735117844922,-501.59,9.783e-05,2]
[346586959,1735117844932,-387.98251068,9.783e-05,2]
[346586960,1735117844941,-500.0,9.783e-05,2]
[346586961,1735117844951,-2490.11,9.783e-05,2]
[346586962,1735117844962,-2800.26,9.783e-05,2]
[346586963,1735117844972,-500.0,9.783e-05,2]
[346586964,1735117844981,-500.0,9.783e-05,2]
[346586965,1735117844993,-996.99,9.783e-05,2]
[346586966,1735117845005,-508.14726498,9.783e-05,2]
[346586967,1735117845014,-500.0,9.783e-05,2]
[346586968,1735117845024,-500.0,9.783e-05,2]
[346586969,1735117845033,-10107.36,9.783e-05,2]
[346586970,1735117845045,-500.0,9.783e-05,2]
[346586971,1735117845054,-500.0,9.783e-05,2]
[346586972,1735117845064,-500.0,9.783e-05,2]
[346586973,1735117845075,-651.98,9.783e-05,2]
[346586974,1735117845085,-2202.6,9.783e-05,2]
[346586975,1735117845094,-500.0,9.783e-05,2]